[Event "3rd Perez Open 2024"]
[Site "Santa Fe"]
[Date "2024.02.23"]
[Round "2.2"]
[White "Fuentes, Agustin"]
[Black "Flores, Diego"]
[Result "0-1"]
[ECO "B07"]
[WhiteElo "1986"]
[BlackElo "2526"]
[Annotator "TA"]
[PlyCount "68"]
[EventDate "2024.02.18"]
[EventType "swiss"]
[EventCountry "ARG"]
[SourceTitle "playchess.com"]
[Source "ChessBase"]
[SourceQuality "1"]
[TimeControl "5400+30"]

{[%evp 13,68,34,45,11,40,-18,-21,-40,-30,-34,-30,-34,-33,-63,-68,-135,-131,-108,-101,-160,-154,-269,-278,-247,-226,-292,-272,-314,-279,-336,-291,-282,-288,-284,-294,-294,-285,-276,-283,-285,-283,-283,-280,-254,-245,-249,-241,-251,-218,-323,-318,-374,-358,-640,-645,-623,-589]} 1. e4 {[%emt 0:00:04]} d6 {[%emt 0:00:36]} 2. d4 {[%emt 0:00:13]} Nf6 {[%emt 0:01:16]} 3. Nc3 {[%emt 0:00:12]} g6 {[%emt 0:00:08]} 4. Be3 {[%emt 0:02:15]} c6 {[%emt 0:00:37]} 5. Qd2 {[%emt 0:01:29]} b5 {[%emt 0:01:25]} 6. Bd3 {[%emt 0:03:37]} Nbd7 {[%emt 0:00:56]} 7. Nf3 {[%emt 0:02:11]} e5 {[%emt 0:01:42]} 8. h3 {[%emt 0:04:13]} Bb7 {[%emt 0:00:53]} 9. Ne2 {[%emt 0:03:10]} (9. dxe5 $14 dxe5 10. O-O) 9... exd4 $11 {[%emt 0:03:44]} 10. Bxd4 {[%emt 0:08:48] The position is equal.} Bg7 {[%emt 0:02:57]} 11. O-O {[%emt 0:11:24]} O-O {[%emt 0:00:39]} 12. Ng3 {[%emt 0:09:47]} c5 {[%emt 0:02:33]} 13. Bxf6 {[%emt 0:02:36]} Nxf6 {[%emt 0:00:17]} 14. e5 {[%emt 0:12:08]} (14. c3 $15) 14... dxe5 $17 {[%emt 0:01:35]} 15. Bxb5 {[%emt 0:00:51]} Qb6 {[%emt 0:00:30]} 16. Be2 {[%emt 0:01:58]} (16. Bc4 $142) 16... Rad8 {[%emt 0:01:20]} (16... Qxb2 $2 17. Rfb1 Qa3 18. Rxb7 $18) 17. Qc3 {[%emt 0:08:00]} (17. Qe1 $17 {was called for.}) 17... e4 $19 {[%emt 0:10:26]} 18. Nh2 {[%emt 0:04:40]} Rd4 {[%emt 0:12:12]} 19. Rad1 {[%emt 0:05:57]} Nd5 {[%emt 0:01:11][%cal Bf6d5,Bd5b4,Bb4c2,Bc2d4][%mdl 32]} 20. Qe1 {[%emt 0:03:49]} Nb4 {[%emt 0:06:59]} (20... Qxb2 21. Rb1 Qxc2 22. Rxb7 $14) 21. Rxd4 {[%emt 0:02:24]} Nxc2 {[%emt 0:00:56]} (21... Bxd4 22. c3 $16) 22. Qb1 {[%emt 0:00:24]} Nxd4 {[%emt 0:00:50]} 23. Bc4 {[%emt 0:00:18]} Qc6 {[%emt 0:02:06][%cal Oe4e3]} 24. Ng4 {[%emt 0:01:19]} Kh8 {[%emt 0:01:49]} 25. Ne3 {[%emt 0:02:45]} f5 {[%emt 0:04:23]} 26. Bd5 {[%emt 0:00:48]} Qc7 {[%emt 0:00:31]} 27. Bxb7 {[%emt 0:00:16]} Qxb7 {[%emt 0:00:38]} 28. Nc4 {[%emt 0:00:10]} h5 {[%emt 0:10:07] [#] aiming for ...h4.} 29. Re1 {[%emt 0:00:51]} Rd8 {[%emt 0:01:41]} 30. Qc1 {[%emt 0:01:49]} Qa6 {[%emt 0:02:32]} 31. Qg5 {[%emt 0:01:30]} (31. b3 {might work better.}) 31... Rd7 {[%emt 0:04:12]} 32. b3 {[%emt 0:01:38][%cal Og3h5]} Kh7 {[%emt 0:00:44][%cal Og7h6]} (32... Qxa2 $2 {too greedy.} 33. Qxg6 Re7 34. Ne3 $18 (34. Qxh5+ Kg8 $18) (34. Nxh5 Qxb3 35. Nd6 Qe6 $18) (34. Nxf5 Nxf5 35. Qxf5 Qxb3 $18)) 33. Kh1 $2 {[%emt 0:04:21] [#]} (33. Qh4) 33... Qxa2 {[%emt 0:02:55]} 34. Nxh5 {[%emt 0:00:59]} Qxf2 {[%emt 0:01:02] White did not feel at home in the position after the opening.   Weighted Error Value: White=0.41/Black=0.09 (flawless) .  Mistake:       	White=6     	---        Inaccurate:     	White=1     	Black=1      OK:         	White=6     	Black=9      Best:        	White=3     	Black=3} 0-1

[Event "3rd Perez Open 2024"]
[Site "Santa Fe"]
[Date "2024.02.23"]
[Round "2.3"]
[White "Acosta, Pablo Ismael"]
[Black "Gutierrez, Ramiro"]
[Result "0-1"]
[ECO "C42"]
[WhiteElo "2479"]
[BlackElo "1887"]
[Annotator "RC"]
[PlyCount "94"]
[EventDate "2024.02.18"]
[EventType "swiss"]
[EventCountry "ARG"]
[SourceTitle "playchess.com"]
[Source "ChessBase"]
[SourceQuality "1"]
[TimeControl "5400+30"]

1. e4 {[%emt 0:03:39]} e5 {[%emt 0:00:10]} 2. Nf3 {[%emt 0:00:10]} Nf6 {[%emt 0:00:08]} 3. Nxe5 {[%emt 0:05:15]} Qe7 {[%emt 0:00:08]} 4. d4 {[%emt 0:01:11]} Nc6 {[%emt 0:00:07]} 5. Nxc6 {[%emt 0:07:12]} Qxe4+ {[%emt 0:00:08]} 6. Qe2 {[%emt 0:00:34]} Qxe2+ {[%emt 0:00:10]} 7. Bxe2 {[%emt 0:00:06]} dxc6 {[%emt 0:00:08]} 8. O-O {[%emt 0:04:17]} Bf5 {[%emt 0:00:06]} 9. c3 {[%emt 0:00:50]} c5 {[%emt 0:00:36]} 10. Be3 {[%emt 0:07:35]} Nd5 {[%emt 0:01:27]} 11. Bf3 {[%emt 0:02:17]} O-O-O {[%emt 0:07:19]} 12. Bxd5 {[%emt 0:06:44]} Rxd5 {[%emt 0:00:29]} 13. c4 {[%emt 0:00:08]} Rd8 {[%emt 0:05:13]} 14. dxc5 {[%emt 0:03:51]} Bd3 {[%emt 0:00:14]} 15. Rd1 {[%emt 0:00:04]} Be7 {[%emt 0:05:35]} 16. Na3 {[%emt 0:11:58]} Bf6 {[%emt 0:00:36]} 17. Rd2 {[%emt 0:00:05]} a6 {[%emt 0:04:13]} 18. Rad1 {[%emt 0:19:05]} Be2 {[%emt 0:00:44]} 19. Rxd8+ {[%emt 0:01:39]} Rxd8 {[%emt 0:00:08]} 20. Rxd8+ {[%emt 0:00:07]} Kxd8 {[%emt 0:00:09]} 21. Bc1 {[%emt 0:00:34]} Bd3 {[%emt 0:00:44]} 22. g4 {[%emt 0:02:11]} Kd7 {[%emt 0:01:32]} 23. Kg2 {[%emt 0:05:03]} Bd4 {[%emt 0:00:48]} 24. b4 {[%emt 0:04:05]} c6 {[%emt 0:00:22]} 25. Kf3 {[%emt 0:00:39]} Ke6 {[%emt 0:02:04]} 26. h3 {[%emt 0:01:32]} h6 {[%emt 0:03:08]} 27. h4 {[%emt 0:02:33]} g5 {[%emt 0:03:36]} 28. hxg5 {[%emt 0:05:12]} hxg5 {[%emt 0:00:08]} 29. Kg3 {[%emt 0:00:01]} Bc3 {[%emt 0:02:01]} 30. Kf3 {[%emt 0:00:41]} Bd4 {[%emt 0:06:39]} 31. Kg3 {[%emt 0:00:09]} a5 {[%emt 0:01:06]} 32. bxa5 {[%emt 0:01:07]} Bxc5 {[%emt 0:00:08]} 33. f4 {[%emt 0:02:19]} Bd6 {[%emt 0:02:34]} 34. c5 {[%emt 0:02:18]} gxf4+ {[%emt 0:00:21]} 35. Kf3 {[%emt 0:00:02]} Bxc5 {[%emt 0:00:37]} 36. Kxf4 {[%emt 0:00:02]} Kd5 {[%emt 0:00:37]} 37. Kg5 {[%emt 0:01:10]} Bb4 {[%emt 0:11:42]} 38. Kf6 {[%emt 0:01:57]} Bg6 {[%emt 0:01:24]} 39. a6 {[%emt 0:00:45]} bxa6 {[%emt 0:00:17]} 40. g5 {[%emt 0:00:11]} c5 {[%emt 0:01:02]} 41. Ke7 {[%emt 0:01:03]} c4+ {[%emt 0:00:15]} 42. Kd7 {[%emt 0:00:07]} c3 {[%emt 0:00:49]} 43. Kc7 {[%emt 0:00:29]} Kd4 {[%emt 0:00:39]} 44. Kb6 {[%emt 0:00:32]} Bd3 {[%emt 0:00:11]} 45. Kb7 {[%emt 0:00:54]} Bc5 {[%emt 0:05:19]} 46. Kc6 {[%emt 0:00:23]} Be4+ {[%emt 0:00:12]} 47. Kd7 {[%emt 0:00:30]} Kd3 {[%emt 0:37:57]} 0-1

[Event "3rd Perez Open 2024"]
[Site "Santa Fe"]
[Date "2024.02.23"]
[Round "2.4"]
[White "Antoniazzi, Maximiliano"]
[Black "Rodriguez Vila, Andres"]
[Result "0-1"]
[ECO "B28"]
[WhiteElo "1871"]
[BlackElo "2407"]
[Annotator "TA"]
[PlyCount "56"]
[EventDate "2024.02.18"]
[EventType "swiss"]
[EventCountry "ARG"]
[SourceTitle "playchess.com"]
[Source "ChessBase"]
[SourceQuality "1"]
[TimeControl "5400+30"]

{[%evp 12,56,-11,-16,0,0,8,0,24,11,0,-13,-18,-29,-32,-40,-22,-33,-21,-33,-28,-39,-29,-38,-26,-26,-39,-116,-114,-187,-185,-191,-210,-249,-247,-404,-210,-446,-445,-831,-818,-964,-945,-904,-878,-1104,-887]} 1. e4 {[%emt 0:09:47]} c5 {[%emt 0:03:06]} 2. Nf3 {[%emt 0:00:06]} a6 {[%emt 0:00:06]} 3. d4 {[%emt 0:02:20]} cxd4 {[%emt 0:00:05]} 4. Nxd4 {[%emt 0:00:06]} Nf6 {[%emt 0:00:04]} 5. Nc3 {[%emt 0:00:17]} e5 {[%emt 0:00:05]} 6. Nb3 {[%emt 0:07:18]} Bb4 {[%emt 0:00:11]} 7. Qd3 {[%emt 0:04:55]} Nc6 {[%emt 0:01:14]} 8. Bg5 {[%emt 0:02:35]} Bxc3+ {[%emt 0:00:08]} 9. bxc3 {[%emt 0:01:44]} h6 {[%emt 0:00:05] The position is equal.} 10. Bxf6 {[%emt 0:13:50]} Qxf6 {[%emt 0:00:08]} 11. Be2 {[%emt 0:01:02]} O-O {[%emt 0:00:28]} 12. a4 {[%emt 0:03:52]} d6 {[%emt 0:00:17]} 13. O-O {[%emt 0:01:15]} Rd8 {[%emt 0:00:15]} 14. Nd2 {[%emt 0:04:50]} Be6 {[%emt 0:01:28]} 15. Nc4 {[%emt 0:13:31]} d5 {[%emt 0:01:25]} 16. Nb6 {[%emt 0:00:57][%csl LRa8,LRd5]} dxe4 {[%emt 0:00:06]} 17. Qxe4 {[%emt 0:00:30]} Bf5 {[%emt 0:00:06]} 18. Qe3 {[%emt 0:01:29]} Rab8 {[%emt 0:00:07]} 19. Qc5 {[%emt 0:09:10]} ({White should try} 19. Bd3 $15) 19... Bxc2 $17 {[%emt 0:02:15]} 20. Bf3 {[%emt 0:00:26]} (20. Rac1 $17 Bd3 21. Bxd3 Rxd3 22. Nd5) 20... e4 $19 {[%emt 0:00:32]} 21. Bg4 {[%emt 0:01:09]} Ne5 {[%emt 0:00:59] Dodges Nd7} 22. Bh3 {[%emt 0:02:35]} Qg5 {[%emt 0:02:23] [#] And now ...Nf3+ would win.} 23. Kh1 $2 {[%emt 0:01:08]} (23. Qc7 {might work better.}) 23... Nd3 {[%emt 0:00:42]} (23... Bd3 $142 24. g3 Bxf1 25. Rxf1 Nd3 26. Qxg5 hxg5) 24. Qc7 $2 {[%emt 0:01:29]} (24. Qxg5 {is a better defense.} hxg5 25. g3) 24... Nf4 {[%emt 0:01:27] Black is clearly winning.} 25. Nd7 {[%emt 0:03:49]} (25. Rfc1 $142 Bd3 26. Re1) 25... Rbc8 {[%emt 0:00:15]} 26. Qd6 {[%emt 0:00:16]} Nxh3 {[%emt 0:01:03]} 27. gxh3 {[%emt 0:00:16] White is weak on the light squares} Qf5 {[%emt 0:01:08]} 28. Rad1 {[%emt 0:00:47]} Bxa4 {[%emt 0:01:38] Weighted Error Value: White=0.87/Black=0.15 (very precise) .  Mistake:       	White=5     	Black=1      OK:         	White=6     	Black=9      Best:        	---       	Black=2} 0-1

[Event "3rd Perez Open 2024"]
[Site "Santa Fe"]
[Date "2024.02.23"]
[Round "2.5"]
[White "Villca, Julian"]
[Black "Tornquist, Carlos"]
[Result "1-0"]
[ECO "E61"]
[WhiteElo "2411"]
[BlackElo "1813"]
[Annotator "RC"]
[PlyCount "61"]
[EventDate "2024.02.18"]
[EventType "swiss"]
[EventCountry "ARG"]
[SourceTitle "playchess.com"]
[Source "ChessBase"]
[SourceQuality "1"]
[TimeControl "5400+30"]

1. c4 {[%emt 0:00:03]} Nf6 {[%emt 0:00:47]} 2. g3 {[%emt 0:00:07]} g6 {[%emt 0:00:33]} 3. Nc3 {[%emt 0:00:07]} Bg7 {[%emt 0:00:06]} 4. d4 {[%emt 0:00:06]} O-O {[%emt 0:00:08]} 5. Bg2 {[%emt 0:00:05]} Nc6 {[%emt 0:03:49]} 6. e3 {[%emt 0:00:09]} d6 {[%emt 0:00:09]} 7. Nge2 {[%emt 0:00:05]} e5 {[%emt 0:00:22]} 8. O-O {[%emt 0:00:07]} Bf5 {[%emt 0:04:06]} 9. d5 {[%emt 0:00:28]} Na5 {[%emt 0:00:41]} 10. e4 {[%emt 0:00:09]} Bd7 {[%emt 0:00:42]} 11. Qd3 {[%emt 0:00:15]} b6 {[%emt 0:00:09]} 12. b4 {[%emt 0:00:21]} Nb7 {[%emt 0:00:01]} 13. a3 {[%emt 0:00:10]} a5 {[%emt 0:00:13]} 14. Bd2 {[%emt 0:02:15]} Qc8 {[%emt 0:07:46]} 15. Nb5 {[%emt 0:05:32]} Bh3 {[%emt 0:05:35]} 16. f3 {[%emt 0:00:38]} Bxg2 {[%emt 0:00:58]} 17. Kxg2 {[%emt 0:00:15]} Nh5 {[%emt 0:04:01]} 18. g4 {[%emt 0:02:18]} Nf4+ {[%emt 0:00:47]} 19. Nxf4 {[%emt 0:00:48]} exf4 {[%emt 0:00:02]} 20. Nd4 {[%emt 0:00:24]} g5 {[%emt 0:04:11]} 21. h4 {[%emt 0:03:43]} h5 {[%emt 0:04:49]} 22. Nf5 {[%emt 0:01:08]} Qd7 {[%emt 0:06:31]} 23. Bc3 {[%emt 0:00:48]} Bxc3 {[%emt 0:08:33]} 24. Qxc3 {[%emt 0:00:26]} f6 {[%emt 0:00:02]} 25. gxh5 {[%emt 0:00:44]} Qh7 {[%emt 0:03:45]} 26. Kf2 {[%emt 0:01:59]} axb4 {[%emt 0:01:57]} 27. axb4 {[%emt 0:00:09]} Qxh5 {[%emt 0:00:29]} 28. Rg1 {[%emt 0:01:14]} Rxa1 {[%emt 0:09:30]} 29. Qxa1 {[%emt 0:00:08]} Nd8 {[%emt 0:00:40]} 30. hxg5 {[%emt 0:00:10]} Nf7 {[%emt 0:07:52]} 31. Qxf6 {[%emt 1:21:09]} 1-0

[Event "3rd Perez Open 2024"]
[Site "Santa Fe"]
[Date "2024.02.23"]
[Round "2.6"]
[White "Gini, Sebastian"]
[Black "Spata, German"]
[Result "0-1"]
[ECO "A31"]
[WhiteElo "1805"]
[BlackElo "2399"]
[Annotator "TA"]
[PlyCount "99"]
[EventDate "2024.02.18"]
[EventType "swiss"]
[EventCountry "ARG"]
[SourceTitle "playchess.com"]
[Source "ChessBase"]
[SourceQuality "1"]
[TimeControl "5400+30"]

{[%evp 27,99,39,51,35,36,31,51,73,109,75,73,64,64,0,47,38,42,47,45,31,27,30,27,23,54,47,44,61,54,63,67,62,99,37,85,49,78,75,74,53,58,0,0,0,0,0,0,0,0,-4,0,0,0,0,0,0,79,0,0,0,0,0,0,0,0,-178,-177,-161,-149,-29996,-29976,-29994,-29995,-29999]} 1. e4 {[%emt 0:00:30]} c5 {[%emt 0:11:16]} 2. Nf3 {[%emt 0:00:11]} e6 {[%emt 0:00:07]} 3. c4 {[%emt 0:01:23]} d6 {[%emt 0:03:10]} 4. d4 {[%emt 0:01:27]} cxd4 {[%emt 0:00:07]} 5. Nxd4 {[%emt 0:00:04]} Nf6 {[%emt 0:00:06]} 6. Nc3 {[%emt 0:00:06]} Be7 {[%emt 0:00:13]} 7. Be2 {[%emt 0:00:26]} a6 {[%emt 0:00:28]} 8. O-O {[%emt 0:00:30]} O-O {[%emt 0:00:26]} 9. Be3 {[%emt 0:00:17]} Qc7 {[%emt 0:06:34]} 10. Rc1 {[%emt 0:01:02]} b6 {[%emt 0:00:43]} 11. Qd2 {[%emt 0:00:35]} Bb7 {[%emt 0:00:05]} 12. f3 {[%emt 0:00:06]} Nbd7 {[%emt 0:00:17]} 13. Rfd1 {[%emt 0:00:36]} Rac8 {[%emt 0:00:35]} 14. Bf1 {[%emt 0:08:47]} Qb8 {[%emt 0:00:17]} 15. b4 {[%emt 0:03:06]} Bd8 {[%emt 0:08:55]} 16. Kh1 {[%emt 0:06:10]} Bc7 {[%emt 0:01:12]} 17. b5 {[%emt 0:03:05] Hoping for bxa6. White is slightly better.} Ne5 {[%emt 0:21:38]} 18. bxa6 {[%emt 0:10:00]} Bxa6 {[%emt 0:00:26]} 19. Ncb5 {[%emt 0:00:29]} Bd8 {[%emt 0:06:04]} 20. Nb3 {[%emt 0:10:25]} (20. Be2 $14) 20... Be7 {[%emt 0:00:16]} (20... Bxb5 $11 21. cxb5 Rxc1 22. Rxc1 d5) 21. Qd4 {[%emt 0:02:13]} (21. Nxd6 Rcd8 22. Qc3 (22. c5 $2 Bxf1 23. Bf4 Ng6 $19) 22... Bxd6 $17) 21... Rc6 {[%emt 0:02:00]} 22. a4 {[%emt 0:01:40][%cal Ba2a4,Ba4a5][%mdl 32]} Nfd7 {[%emt 0:08:25]} 23. a5 {[%emt 0:06:45]} Nc5 {[%emt 0:01:32]} 24. Nxc5 {[%emt 0:02:55]} bxc5 {[%emt 0:01:12]} 25. Qd2 {[%emt 0:05:14]} Qa8 {[%emt 0:03:56]} 26. f4 {[%emt 0:06:03]} Ng4 {[%emt 0:01:40]} 27. Bg1 {[%emt 0:05:23]} Rd8 {[%emt 0:01:23]} 28. Be2 {[%emt 0:00:55]} Nf6 {[%emt 0:01:09]} 29. Bf3 {[%emt 0:00:10] e5 is the strong threat.} Bb7 {[%emt 0:05:30]} 30. Qc3 {[%emt 0:05:27]} ({White should try} 30. a6 $16 Rxa6 (30... Bxa6 $2 {loses.} 31. e5 $18) 31. Nc7) 30... Rcc8 {[%emt 0:01:38]} (30... Ne8 $1 $14) 31. e5 $16 {[%emt 0:04:07]} Ne4 {[%emt 0:01:51]} 32. Qe1 {[%emt 0:02:24][%cal Oa5a6]} d5 {[%emt 0:01:37]} 33. Bxe4 {[%emt 0:01:45]} (33. Ra1 $5) 33... dxe4 {[%emt 0:00:05]} 34. Be3 {[%emt 0:02:30]} (34. Nd6 $14) 34... Rd3 $11 {[%emt 0:00:38]} 35. Rxd3 {[%emt 0:05:10]} exd3 {[%emt 0:00:03]} 36. Qd2 {[%emt 0:00:34]} Be4 {[%emt 0:03:20]} 37. Ra1 {[%emt 0:00:36]} Qa6 {[%emt 0:00:38]} 38. Kg1 {[%emt 0:03:15]} h5 {[%emt 0:00:30]} 39. Qf2 {[%emt 0:01:23]} Bb7 {[%emt 0:04:19]} 40. Bd2 {[%emt 0:00:10]} Bc6 {[%emt 0:01:47]} 41. Rb1 {[%emt 0:00:08]} Rb8 {[%emt 0:00:33] [#]} (41... Be4 $11 {keeps the balance.}) 42. Qe3 {[%emt 0:00:51]} (42. f5 $1 $16) 42... Rd8 {[%emt 0:02:18]} 43. Rb3 {[%emt 0:00:02]} Qa8 {[%emt 0:00:54]} 44. Rxd3 {[%emt 0:00:42]} Bxg2 {[%emt 0:01:04]} 45. Rxd8+ {[%emt 0:00:10]} Bxd8 {[%emt 0:00:07]} 46. Qxc5 $2 {[%emt 0:00:55]} (46. Nd6 $11 {and White stays safe.}) 46... Bh3 $1 $40 {[%emt 0:00:43][%mdl 128] White is in trouble. This pair of bishops is nice.} ({Don't take} 46... Bxa5 47. Bxa5 Bh3 48. Kf2 Qxa5 49. Qe3 Qa2+ 50. Qe2 $17) 47. Qf2 {[%emt 0:00:10] Prevents Qg2+} Bxa5 {[%emt 0:00:29]} 48. Be3 {[%emt 0:00:40][%mdl 8192] [#] Inhibits Bb6.} (48. Bxa5 $17 Qxa5 49. Qe2) 48... Qe4 {[%emt 0:00:40]} 49. Qg3 {[%emt 0:01:57]} Qb1+ {[%emt 0:00:19]} ({Weaker is} 49... Qxc4 50. Qxh3 Qxb5 51. Qxh5 $15) 50. Kf2 {[%emt 0:02:01] Weighted Error Value: White=0.35/Black=0.14 (very precise) .  Loses game:     	White=2     	---        Mistake:       	White=4     	Black=3      Inaccurate:     	White=1     	Black=4      OK:         	White=15    	Black=9      Best:        	White=2     	Black=1      Strong:       	---       	Black=1} 0-1

[Event "3rd Perez Open 2024"]
[Site "Santa Fe"]
[Date "2024.02.23"]
[Round "3.1"]
[White "Asprelli, Gaspar"]
[Black "Felgaer, Ruben"]
[Result "0-1"]
[ECO "B33"]
[WhiteElo "2226"]
[BlackElo "2572"]
[Annotator "TA"]
[PlyCount "83"]
[EventDate "2024.02.18"]
[EventType "swiss"]
[EventCountry "ARG"]
[SourceTitle "playchess.com"]
[Source "ChessBase"]
[SourceQuality "1"]
[TimeControl "5400+30"]

{[%evp 23,83,13,12,0,27,8,16,18,31,22,35,16,40,18,38,43,39,0,22,0,0,0,29,31,56,37,81,71,67,0,0,0,0,-23,-23,-25,-25,-16,0,0,0,-43,-20,-35,-12,-13,-13,-112,-112,-112,0,-106,-88,-170,-150,-392,-363,-412,-446,-446,-428,-1875]} 1. e4 {[%emt 0:00:06]} c5 {[%emt 0:00:09]} 2. Nf3 {[%emt 0:00:18]} Nc6 {[%emt 0:00:33]} 3. d4 {[%emt 0:00:29]} cxd4 {[%emt 0:00:09]} 4. Nxd4 {[%emt 0:00:08]} Nf6 {[%emt 0:00:28]} 5. Nc3 {[%emt 0:00:57]} e5 {[%emt 0:00:20]} 6. Ndb5 {[%emt 0:00:46]} d6 {[%emt 0:00:10]} 7. Bg5 {[%emt 0:00:28]} a6 {[%emt 0:00:10]} 8. Na3 {[%emt 0:00:07]} b5 {[%emt 0:00:08][%cal Bb7b5,Bb5b4][%mdl 32]} 9. Nd5 {[%emt 0:00:10]} Be7 {[%emt 0:00:16]} 10. Bxf6 {[%emt 0:00:13]} Bxf6 {[%emt 0:00:07]} 11. c4 {[%emt 0:00:11]} b4 {[%emt 0:00:35]} 12. Nc2 {[%emt 0:00:08]} a5 {[%emt 0:03:11]} 13. Qf3 {[%emt 0:00:29]} Be6 {[%emt 0:06:27]} 14. Rd1 {[%emt 0:06:26]} Bxd5 {[%emt 0:11:37]} 15. cxd5 {[%emt 0:01:19] The position is equal.} Na7 {[%emt 0:02:29] Black is weak on the light squares} 16. Bd3 {[%emt 0:13:55]} O-O {[%emt 0:09:19]} 17. h4 {[%emt 0:12:06]} Rb8 {[%emt 0:03:34][%cal Ob4b3]} 18. Ne3 {[%emt 0:01:16]} b3 {[%emt 0:00:58]} 19. a3 {[%emt 0:02:07]} a4 {[%emt 0:06:01][%cal Oa7b5]} 20. g3 {[%emt 0:04:47]} Nb5 $1 {[%emt 0:03:05]} 21. Bxb5 {[%emt 0:06:23] [#] Threatens to win with Bc6.} Qa5+ {[%emt 0:02:34]} 22. Kf1 {[%emt 0:00:21]} Qxb5+ {[%emt 0:01:02]} 23. Kg2 {[%emt 0:00:11]} Rfc8 {[%emt 0:05:47]} 24. Rc1 {[%emt 0:24:25]} Rc5 {[%emt 0:23:02]} 25. Rxc5 {[%emt 0:02:15]} Qxc5 {[%emt 0:00:09]} 26. Rd1 {[%emt 0:00:08]} ({White should play} 26. Qe2 $1 $14) 26... Bd8 {[%emt 0:04:04]} 27. Nf5 {[%emt 0:15:35] Rd3 would now be deadly.} Qc7 {[%emt 0:13:38]} 28. Rd3 {[%emt 0:03:56] [#] Rc3 is the strong threat.} g6 {[%emt 0:00:43]} 29. Rc3 {[%emt 0:00:55]} Qd7 {[%emt 0:00:05]} 30. Ne3 {[%emt 0:00:24]} Rc8 $36 {[%emt 0:01:46][%mdl 2048] Repels Rc6. Hoping for ...Rxc3. Black has good play.} 31. Nc4 {[%emt 0:00:10]} Kg7 {[%emt 0:01:41]} 32. Qd3 {[%emt 0:00:45]} Rc5 {[%emt 0:00:32]} (32... Qb5 $5) 33. Nd2 {[%emt 0:04:24] And now Rxc5 would win.} Bb6 {[%emt 0:00:58]} 34. Rxc5 {[%emt 0:00:29]} Bxc5 $11 {[%emt 0:00:01][%mdl 4096] Endgame. KQB-KQN} 35. Nf3 {[%emt 0:00:16]} (35. Qa6 $11) 35... Qa7 $17 {[%emt 0:00:17]} 36. Qe2 {[%emt 0:00:32][%cal Oh4h5]} Qb6 {[%emt 0:00:27]} ({Black should try} 36... h5 $17 37. Kf1 Bd4) 37. Nd2 {[%emt 0:00:25]} (37. h5 $11 {keeps the balance.}) 37... Bd4 {[%emt 0:00:31] Black is more active.} 38. Nc4 {[%emt 0:00:49]} (38. Nf3 $17) 38... Qc5 {[%emt 0:00:11]} 39. f4 $2 {[%emt 0:00:32] This move loses the game for White.} (39. h5 $17) 39... exf4 $19 {[%emt 0:01:37]} 40. gxf4 {[%emt 0:00:04]} h5 {[%emt 0:00:20]} 41. Kf3 {[%emt 0:00:27]} Bf6 {[%emt 0:00:31]} 42. Qd2 {[%emt 0:01:05] Weighted Error Value: White=0.34/Black=0.14 (very precise) .  Loses game:     	White=1     	---        Mistake:       	White=5     	Black=1      Inaccurate:     	White=1     	Black=3      OK:         	White=5     	Black=9      Best:        	White=2     	Black=1      Strong:       	---       	Black=1} (42. Ne3 $142) 0-1